lending/lending_fUSD_20260222
["ID","MTS","AMOUNT","RATE_DAILY","PERIOD"]
[406310088,1771720242229,-495.66285401,0.00028767,2]
[406310089,1771720242237,-1209.0,0.00028818,2]
[406310090,1771720242246,-1039.0,0.00028818,2]
[406310091,1771720242255,-1338.0,0.00028818,2]
[406310092,1771720242264,-616.0,0.00028818,2]
[406310093,1771720242273,-200.0,0.00028901,19]
[406310094,1771720242282,-484.03,0.0002896,2]
[406310095,1771720242291,-503.80559011,0.00029,2]
[406310096,1771720242300,-786.96,0.00029142,2]
[406310097,1771720242309,-1591.580852,0.00029241,30]
[406310098,1771720242318,-484.03,0.00029331,2]
[406310099,1771720242328,-484.03,0.00029702,2]
[406310100,1771720242337,-79162.61569154,0.000299,2]
[406310101,1771720242346,-238.0734173,0.0002999,2]
[406310102,1771720242355,-19939.08367509,0.0003,2]
[406310103,1771720242364,-320.44975068,0.0003,2]
[406310104,1771720242373,-1824.22976787,0.0003,2]
[406310105,1771720242382,-163.62118175,0.0003,2]
[406310106,1771720242391,-484.03,0.00030073,2]
[406310107,1771720242401,-8823.48960657,0.0003012,2]
[406310108,1771720242410,-207.865694,0.00030121,7]
[406310109,1771720242419,-207.865694,0.00030121,7]
[406310110,1771720242428,-207.865694,0.00030121,7]
[406310111,1771720242437,-207.865697,0.00030121,7]
[406310112,1771720242446,-542.272363,0.00030121,7]
[406310113,1771720242455,-542.272363,0.00030121,7]
[406310114,1771720242464,-542.272363,0.00030121,7]
[406310115,1771720242473,-542.27237,0.00030121,7]
[406310116,1771720242483,-198.717974,0.00030121,7]
[406310117,1771720242492,-198.717974,0.00030121,7]
[406310118,1771720242501,-198.717974,0.00030121,7]
[406310119,1771720242511,-198.717982,0.00030121,7]
[406310120,1771720242520,-2402.37669,0.00030121,7]
[406310121,1771720242529,-2402.37669,0.00030121,7]
[406310122,1771720242538,-635.623931,0.00030121,7]
[406310123,1771720242547,-2402.37669,0.00030121,7]
[406310124,1771720242556,-635.623931,0.00030121,7]
[406310125,1771720242565,-2402.376688,0.00030121,7]
[406310126,1771720242575,-635.623931,0.00030121,7]
[406310127,1771720242583,-635.623924,0.00030121,7]
[406310128,1771720242592,-1077.62248089,0.0003013,2]
[406310129,1771720242602,-13902.56556219,0.0003013,2]
[406310130,1771720242611,-636.39368784,0.0003013,2]
[406310131,1771720242620,-202.45269075,0.0003013,2]
[406310132,1771720242630,-7759.88290695,0.0003013,2]
[406310133,1771720242639,-2703.66972656,0.00030176,2]
[406310134,1771720242648,-15593.05946708,0.000302,2]
[406310135,1771720242657,-484.03,0.00030445,2]
[406310136,1771720242668,-484.03,0.00030816,2]
[406310137,1771720242678,-1614.76368904,0.0003084,2]
[406310138,1771720242687,-79305.16257805,0.0003095,2]
[406310139,1771720242697,-351.470842,0.0003095,7]
[406310140,1771720242706,-351.470842,0.0003095,7]
[406310141,1771720242715,-351.470842,0.0003095,7]
[406310142,1771720242725,-351.470842,0.0003095,7]
[406310143,1771720242734,-51751.13468422,0.00031,2]
[406310144,1771720242743,-484.03,0.00031187,2]
[406310145,1771720242752,-198.06885736,0.000315,2]
[406310146,1771720242762,-484.03,0.00031559,2]
[406310147,1771720242775,-1570.21731619,0.00031572,2]
[406310148,1771720242784,-2337.53,0.00031691,120]
[406310149,1771720242794,-200.0,0.00031735,29]
[406310150,1771720242803,-167.45,0.00031777,30]
[406310151,1771720242812,-1209.0,0.00031818,2]
[406310152,1771720242821,-1039.0,0.00031818,2]
[406310153,1771720242830,-1338.0,0.00031818,2]
[406310154,1771720242839,-484.03,0.0003193,2]
[406310155,1771720242847,-25459.603609,0.000323,30]
[406310156,1771720242856,-484.03,0.00032301,2]
[406310157,1771720242866,-786.96,0.00032566,2]
[406310158,1771720242875,-484.03,0.00032673,2]
[406310159,1771720242884,-484.03,0.00033044,2]
[406310160,1771720242893,-8823.48960657,0.00033091,2]
[406310161,1771720242902,-176.99,0.000331,14]
[406310162,1771720242911,-8469.59,0.000331,14]
[406310163,1771720242920,-1122.61,0.000331,2]
[406310164,1771720242929,-2703.66972656,0.00033135,2]
[406310165,1771720242937,-484.03,0.00033415,2]
[406310166,1771720242946,-484.03,0.00033786,2]
[406310167,1771720242955,-2912.32495921,0.00034142,2]
[406310168,1771720242964,-484.03,0.00034158,2]
[406310169,1771720242974,-2307.605273,0.00034198,60]
[406310170,1771720242983,-484.03,0.00034529,2]
[406310171,1771720242992,-200.0,0.00034568,40]
[406310172,1771720243000,-1209.0,0.00034818,2]
[406310173,1771720243010,-1039.0,0.00034818,2]
[406310174,1771720243018,-484.03,0.000349,2]
[406310175,1771720243027,-322.91,0.00034992,2]
[406310176,1771720243036,-8469.59,0.000351,14]
[406310177,1771720243047,-1122.61,0.000351,2]
[406310178,1771720243056,-167.45,0.000351,60]
[406310179,1771720243065,-484.03,0.00035272,2]
[406310180,1771720243074,-2185.89,0.00035366,2]
[406310181,1771720243083,-293.32,0.00035399,14]
[406310182,1771720243091,-967.13,0.000357,43]
[406310183,1771720243100,-164.786,0.000357,43]
[406310184,1771720243109,-1321.9,0.00035826,2]
[406310185,1771720243119,-176.99,0.000359,14]
[406310186,1771720243129,-786.96,0.00035991,2]
[406310187,1771720243138,-8823.48960657,0.00036061,2]
[406310188,1771720243148,-2703.66972656,0.00036094,2]
[406310189,1771720243158,-4232.68,0.00036483,2]
[406310190,1771720243166,-293.32,0.00036652,14]
[406310191,1771720243176,-8469.59,0.000371,14]
[406310192,1771720243184,-1122.61,0.000371,2]
[406310193,1771720243193,-151.0,0.00037179,14]
[406310194,1771720243203,-300.0,0.00037181,10]
[406310195,1771720243213,-666.0,0.00037181,30]
[406310196,1771720243223,-57240.83,0.00037182,2]
[406310197,1771720243233,-200.0,0.00037402,54]
[406310198,1771720243242,-1209.0,0.00037818,2]
[406310199,1771720243250,-467.148,0.00037818,2]
[406310200,1771720243259,-640.0,0.00038031,120]
[406310201,1771720243269,-1712.0,0.00038031,120]
[406310202,1771720243277,-450.0,0.00038031,120]
[406310203,1771720243287,-157.55,0.00038034,30]
[406310204,1771720243296,-192.46,0.00038094,14]
[406310205,1771720243305,-500.0,0.00038138,120]
[406310206,1771720243314,-322.91,0.00038292,2]
[406310207,1771720243323,-167.45,0.00038424,60]
[406310208,1771720243332,-7117.0,0.00038678,5]
[406310209,1771720243340,-500.0,0.00038981,8]
[406310210,1771720243349,-29189.8,0.00038982,2]
[406310211,1771720243358,-151.0,0.00038982,120]
[406310212,1771720243367,-151.0,0.00038982,120]
[406310213,1771720243376,-151.0,0.00038982,120]
[406310214,1771720243385,-1737.310194,0.00038982,120]
[406310215,1771720243393,-1737.310194,0.00038982,120]
[406310216,1771720243403,-1737.310194,0.00038982,120]
[406310217,1771720243411,-1737.310194,0.00038982,120]
[406310218,1771720243420,-151.0,0.00038982,120]
[406310219,1771720243430,-151.0,0.00038982,120]
[406310220,1771720243439,-151.0,0.00038982,28]
[406310221,1771720243448,-351.470842,0.00038982,120]
[406310222,1771720243457,-351.470842,0.00038982,120]
[406310223,1771720243466,-351.470842,0.00038982,120]
[406310224,1771720243476,-351.470842,0.00038982,120]
[406310225,1771720243485,-3713.688655,0.00038988,60]
[406310226,1771720243495,-8823.48960657,0.00039031,2]
[406310227,1771720243504,-2703.66972656,0.00039053,2]
[406310228,1771720243514,-8469.59,0.000391,14]
[406310229,1771720243523,-1122.61,0.000391,30]
[406310230,1771720243532,-786.96,0.00039416,2]
[406310231,1771720243541,-1766.0,0.00039489,2]
[406310232,1771720243549,-2912.32495921,0.00039556,2]
[406310233,1771720243558,-150.0,0.00039677,2]
[406310234,1771720243567,-150.0,0.00039677,2]
[406310235,1771720243576,-150.0,0.00039677,2]
[406310236,1771720243585,-150.0,0.00039677,2]
[406310237,1771720243594,-150.0,0.00039677,2]
[406310238,1771720243603,-150.0,0.00039677,2]
[406310239,1771720243612,-150.0,0.00039677,2]
[406310240,1771720243621,-150.0,0.00039677,2]
[406310241,1771720243630,-284.0,0.00039677,2]
[406310242,1771720243639,-168.0,0.00039933,2]
[406310243,1771720243648,-150.0,0.0004,2]
[406310244,1771720243657,-7732.5316631,0.0004,2]
[406310245,1771720243665,-168.0,0.00040022,120]
[406310246,1771720243674,-449.57695915,0.00040033,7]
[406310247,1771720243683,-500.0,0.00040033,7]
[406310248,1771720243692,-168.0,0.00040052,2]
[406310249,1771720243701,-1767.0,0.00040078,2]
[406310250,1771720243710,-192.46,0.00040197,14]
[406310251,1771720243719,-150.0,0.0004029,20]
[406310252,1771720243728,-168.0,0.00040408,7]
[406310253,1771720243738,-700.0,0.00040457,4]
[406310254,1771720243747,-500.0,0.00040462,30]
[406310255,1771720243757,-150.0,0.00040462,30]
[406310256,1771720243766,-500.0,0.00040462,30]
[406310257,1771720243779,-150.0,0.00040462,30]
[406310258,1771720243788,-150.0,0.00040462,30]
[406310259,1771720243797,-500.0,0.00040462,30]
[406310260,1771720243956,-551.0,0.00040462,30]
[406310261,1771720243966,-500.0,0.00040462,30]
[406310262,1771720243976,-500.0,0.00040462,30]
[406310263,1771720243985,-500.0,0.00040462,30]
[406310264,1771720243994,-500.0,0.00040462,30]
[406310265,1771720244003,-500.0,0.00040462,30]
[406310266,1771720244012,-150.0,0.00040462,30]
[406310267,1771720244021,-500.0,0.00040462,30]
[406310268,1771720244030,-500.0,0.00040462,30]
[406310269,1771720244039,-500.0,0.00040462,30]
[406310270,1771720244048,-500.0,0.00040462,30]
[406310271,1771720244057,-150.0,0.00040462,30]
[406310272,1771720244066,-150.0,0.00040462,30]
[406310273,1771720244075,-150.0,0.00040462,2]
[406310274,1771720244084,-161.43633423,0.00040462,30]
[406310275,1771720244093,-500.0,0.00040462,30]
[406310276,1771720244102,-500.0,0.00040517,30]
[406310277,1771720244111,-500.0,0.00040517,30]
[406310278,1771720244120,-150.0,0.00040517,30]
[406310279,1771720244129,-150.0,0.00040517,30]
[406310280,1771720244148,-500.0,0.00040517,30]
[406310281,1771720244158,-551.0,0.00040517,30]
[406310282,1771720244168,-500.0,0.00040517,30]
[406310283,1771720244177,-500.0,0.00040517,30]
[406310284,1771720244187,-500.0,0.00040517,30]
[406310285,1771720244196,-500.0,0.00040517,30]
[406310286,1771720244206,-500.0,0.00040517,30]
[406310287,1771720244215,-150.0,0.00040517,30]
[406310288,1771720244225,-500.0,0.00040517,30]
[406310289,1771720244235,-500.0,0.00040517,30]
[406310290,1771720244244,-500.0,0.00040517,30]
[406310291,1771720244253,-500.0,0.00040517,30]
[406310292,1771720244263,-150.0,0.00040517,30]
[406310293,1771720244272,-500.0,0.00040517,30]
[406310294,1771720244282,-350.0,0.00040545,2]
[406310295,1771720244292,-479.0,0.00040572,30]
[406310296,1771720244301,-288.24134749,0.00040572,30]
[406310297,1771720244311,-287.38563793,0.00040572,30]
[406310298,1771720244320,-150.0,0.00040572,30]
[406310299,1771720244329,-500.0,0.00040572,30]
[406310300,1771720244339,-551.0,0.00040572,30]
[406310301,1771720244349,-500.0,0.00040572,30]
[406310302,1771720244358,-500.0,0.00040572,30]
[406310303,1771720244367,-500.0,0.00040572,30]
[406310304,1771720244377,-500.0,0.00040572,30]
[406310305,1771720244386,-500.0,0.00040572,30]
[406310306,1771720244396,-236.26020766,0.00040572,30]
[406310307,1771720244406,-500.0,0.00040572,30]
[406310308,1771720244416,-500.0,0.00040572,30]
[406310309,1771720244425,-278.50973652,0.00040572,30]
[406310310,1771720244434,-382.0,0.00040572,30]
[406310311,1771720244444,-200.0,0.00040572,30]
[406310312,1771720244453,-500.0,0.00040572,30]
[406310313,1771720244463,-855.46737255,0.00040581,2]
[406310314,1771720244472,-884.25866852,0.00040581,2]
[406310315,1771720244482,-300.0,0.00040581,2]
[406310316,1771720244491,-307.19972653,0.00040581,2]
[406310317,1771720244501,-458.66921193,0.00040581,2]
[406310318,1771720244510,-371.30350818,0.00040581,2]
[406310319,1771720244520,-691.25953205,0.00040581,2]
[406310320,1771720244531,-408.20751084,0.00040581,2]
[406310321,1771720244542,-1081.79077738,0.00040581,2]
[406310322,1771720244551,-855.46737255,0.00040581,2]
[406310323,1771720244561,-884.25866852,0.00040581,2]
[406310324,1771720244570,-300.0,0.00040581,2]
[406310325,1771720244579,-307.19972653,0.00040581,2]
[406310326,1771720244588,-458.66921193,0.00040581,2]
[406310327,1771720244598,-371.30350818,0.00040581,2]
[406310328,1771720244607,-360.59692582,0.00040581,2]
[406310329,1771720244617,-150.0,0.00040626,30]
[406310330,1771720244627,-501.49147741,0.00040626,30]
[406310331,1771720244636,-551.0,0.00040626,30]
[406310332,1771720244646,-500.0,0.00040626,30]
[406310333,1771720244656,-500.0,0.00040626,30]
[406310334,1771720244666,-500.0,0.00040626,30]
[406310335,1771720244676,-500.0,0.00040626,30]
[406310336,1771720244686,-500.0,0.00040626,30]
[406310337,1771720244696,-500.0,0.00040626,30]
[406310338,1771720244705,-500.0,0.00040626,30]
[406310339,1771720244715,-500.70947646,0.00040626,30]
[406310340,1771720244724,-1072.45485431,0.00040642,120]
[406310341,1771720244734,-265.99896868,0.00040681,30]
[406310342,1771720244744,-551.0,0.00040681,30]
[406310343,1771720244754,-500.0,0.00040681,30]
[406310344,1771720244763,-500.0,0.00040681,30]
[406310345,1771720244775,-500.0,0.00040681,30]
[406310346,1771720244784,-500.0,0.00040681,30]
[406310347,1771720244793,-168.0,0.0004069,2]
[406310348,1771720244803,-3671.1203894,0.0004073,2]
[406310349,1771720244812,-4346.9907589,0.0004073,2]
[406310350,1771720244821,-551.0,0.00040736,30]
[406310351,1771720244831,-500.0,0.00040736,30]
[406310352,1771720244841,-500.0,0.00040736,30]
[406310353,1771720244850,-500.0,0.00040736,30]
[406310354,1771720244860,-500.0,0.00040736,30]
[406310355,1771720244869,-500.0,0.00040749,8]
[406310356,1771720244878,-500.0,0.00040749,8]
[406310357,1771720244887,-500.0,0.00040749,8]
[406310358,1771720244896,-500.0,0.00040749,8]
[406310359,1771720244906,-500.0,0.00040749,8]
[406310360,1771720244915,-500.0,0.00040749,8]
[406310361,1771720244924,-500.0,0.00040749,8]
[406310362,1771720244934,-237.0629335,0.00040749,8]
[406310363,1771720244943,-500.0,0.00040749,8]
[406310364,1771720244952,-500.0,0.00040749,8]
[406310365,1771720244961,-500.0,0.00040749,8]
[406310366,1771720244971,-500.0,0.00040749,8]
[406310367,1771720244981,-500.0,0.00040749,8]
[406310368,1771720244990,-500.0,0.00040749,8]
[406310369,1771720244999,-500.0,0.00040749,8]
[406310370,1771720245009,-560.25131613,0.00040749,8]
[406310371,1771720245019,-415.79283725,0.00040749,8]
[406310372,1771720245028,-500.0,0.00040749,8]
[406310373,1771720245039,-500.0,0.00040749,8]
[406310374,1771720245048,-500.0,0.00040749,8]
[406310375,1771720245057,-500.0,0.00040749,8]
[406310376,1771720245066,-500.0,0.00040749,8]
[406310377,1771720245076,-500.0,0.00040749,8]
[406310378,1771720245085,-500.0,0.00040749,8]
[406310379,1771720245095,-500.0,0.00040749,8]
[406310380,1771720245104,-500.0,0.00040749,8]
[406310381,1771720245114,-500.0,0.00040749,8]
[406310382,1771720245123,-201.3506517,0.00040749,8]
[406310383,1771720245133,-500.0,0.00040749,8]
[406310384,1771720245142,-500.0,0.00040749,8]
[406310385,1771720245151,-500.0,0.00040749,8]
[406310386,1771720245160,-500.0,0.00040749,8]
[406310387,1771720245169,-500.0,0.00040749,8]
[406310388,1771720245178,-500.0,0.00040749,8]
[406310389,1771720245187,-500.0,0.00040749,8]
[406310390,1771720245196,-500.0,0.00040749,8]
[406310391,1771720245206,-500.0,0.00040749,8]
[406310392,1771720245215,-500.0,0.00040749,8]
[406310393,1771720245225,-500.0,0.00040749,8]
[406310395,1771720245235,-500.0,0.00040749,8]
[406310397,1771720245244,-550.6735607,0.00040749,8]
[406310398,1771720245254,-300.0,0.00040749,10]
[406310399,1771720245262,-300.0,0.00040749,10]
[406310400,1771720245271,-666.0,0.00040749,30]
[406310401,1771720245280,-300.0,0.00040749,10]
[406310402,1771720245289,-218.570731,0.0004075,120]
[406310403,1771720245298,-218.570731,0.0004075,120]
[406310404,1771720245307,-218.570731,0.0004075,120]
[406310405,1771720245317,-218.570731,0.0004075,120]
[406310406,1771720245326,-1000.0,0.0004075,2]
[406310407,1771720245335,-1766.0,0.00040765,120]
[406310408,1771720245345,-551.0,0.00040791,30]
[406310409,1771720245355,-500.0,0.00040791,30]
[406310410,1771720245364,-280.56136769,0.00040791,30]
[406310411,1771720245374,-176.0,0.00040791,30]
[406310412,1771720245382,-500.0,0.00040791,30]
[406310414,1771720245391,-500.0,0.000408,2]
[406310415,1771720245401,-551.0,0.00040846,30]
[406310416,1771720245410,-500.0,0.00040846,30]
[406310417,1771720245419,-355.01305697,0.00040846,14]
[406310418,1771720245428,-199.362,0.00040848,120]
[406310419,1771720245438,-740.0,0.00040848,30]
[406310420,1771720245447,-500.0,0.00040849,8]
[406310421,1771720245457,-500.0,0.00040849,8]
[406310422,1771720245466,-500.0,0.00040849,8]
[406310423,1771720245475,-500.0,0.00040849,8]
[406310424,1771720245485,-500.0,0.00040849,8]
[406310425,1771720245495,-500.0,0.00040849,8]
[406310426,1771720245503,-500.0,0.00040849,8]
[406310427,1771720245513,-500.0,0.00040849,8]
[406310428,1771720245523,-500.0,0.00040849,8]
[406310429,1771720245532,-500.0,0.00040849,8]
[406310430,1771720245543,-500.0,0.00040849,8]
[406310431,1771720245553,-236.11508189,0.00040849,8]
[406310432,1771720245563,-405.98354,0.00040849,120]
[406310433,1771720245573,-405.98354,0.00040849,120]
[406310434,1771720245583,-405.98354,0.00040849,120]
[406310435,1771720245592,-405.98354,0.00040849,120]
[406310436,1771720245601,-151.0,0.00040849,120]
[406310437,1771720245611,-151.0,0.00040849,120]
[406310438,1771720245620,-151.0,0.00040849,120]
[406310439,1771720245629,-151.0,0.00040849,120]
[406310440,1771720245638,-173.79956,0.00040849,60]
[406310441,1771720245648,-173.79956,0.00040849,60]
[406310442,1771720245657,-173.79956,0.00040849,60]
[406310443,1771720245667,-173.79956,0.00040849,60]
[406310444,1771720245676,-174.61919142,0.00040849,21]
[406310445,1771720245685,-500.0,0.00040849,21]
[406310446,1771720245695,-500.0,0.00040849,21]
[406310447,1771720245704,-500.0,0.00040849,21]
[406310448,1771720245713,-578.20924309,0.00040849,21]
[406310449,1771720245722,-500.0,0.00040849,21]
[406310450,1771720245732,-500.0,0.00040849,21]
[406310451,1771720245741,-500.0,0.00040849,21]
[406310452,1771720245751,-500.0,0.00040849,21]
[406310453,1771720245759,-500.0,0.00040849,21]
[406310454,1771720245769,-500.0,0.00040849,21]
[406310455,1771720245781,-500.0,0.00040849,21]
[406310456,1771720245791,-500.0,0.00040849,21]
[406310457,1771720245800,-500.0,0.00040849,21]
[406310458,1771720245809,-500.0,0.00040849,21]
[406310459,1771720245820,-500.0,0.00040849,21]
[406310460,1771720245829,-500.0,0.00040849,21]
[406310461,1771720245839,-500.0,0.00040849,21]
[406310462,1771720245848,-500.0,0.00040849,21]
[406310463,1771720245857,-500.0,0.00040849,21]
[406310465,1771720245866,-646.97769773,0.00040849,21]
[406310467,1771720245876,-500.0,0.00040849,21]
[406310469,1771720245885,-167.89674462,0.00040849,21]
[406310471,1771720245894,-721.12765535,0.00040849,21]
[406310473,1771720245904,-500.0,0.00040849,21]
[406310475,1771720245913,-747.8093786,0.00040849,21]
[406310477,1771720245922,-500.0,0.00040849,21]
[406310479,1771720245931,-500.0,0.00040849,21]
[406310481,1771720245939,-775.47832561,0.00040849,21]
[406310483,1771720245949,-500.0,0.00040849,21]
[406310485,1771720245958,-804.17102365,0.00040849,21]
[406310487,1771720245967,-500.0,0.00040849,21]
[406310489,1771720245977,-443.10926995,0.00040849,21]
[406310491,1771720245986,-151.0,0.00040849,21]
[406310493,1771720245994,-2000.0,0.00040849,21]
[406310495,1771720246003,-500.0,0.00040849,21]
[406310497,1771720246012,-151.0,0.00040849,21]
[406310499,1771720246021,-2000.0,0.00040849,21]
[406310501,1771720246030,-500.0,0.00040849,21]
[406310503,1771720246039,-151.0,0.00040849,21]
[406310505,1771720246048,-500.0,0.00040849,21]
[406310507,1771720246057,-151.0,0.00040849,21]
[406310509,1771720246066,-500.0,0.00040849,21]
[406310511,1771720246076,-500.0,0.00040849,21]
[406310513,1771720246085,-500.0,0.00040849,21]
[406310515,1771720246094,-151.0,0.00040849,21]
[406310517,1771720246103,-151.0,0.00040849,21]
[406310519,1771720246112,-151.0,0.00040849,21]
[406310521,1771720246121,-151.0,0.00040849,21]
[406310523,1771720246130,-151.0,0.00040849,21]
[406310525,1771720246138,-693.3919763,0.00040849,21]
[406310527,1771720246147,-719.04747942,0.00040849,21]
[406310529,1771720246156,-151.0,0.00040849,21]
[406310531,1771720246166,-151.0,0.00040849,21]
[406310533,1771720246174,-745.65223616,0.00040849,21]
[406310535,1771720246183,-151.0,0.00040849,21]
[406310537,1771720246192,-773.2413689,0.00040849,21]
[406310544,1771720246245,-151.0,0.00040849,21]
[406310546,1771720246255,-801.85129955,0.00040849,21]
[406310548,1771720246264,-151.0,0.00040849,21]
[406310550,1771720246273,-831.51979763,0.00040849,21]
[406310551,1771720246282,-151.0,0.00040849,21]
[406310552,1771720246291,-862.28603014,0.00040849,21]
[406310553,1771720246300,-894.19061326,0.00040849,21]
[406310554,1771720246308,-927.27566595,0.00040849,21]
[406310555,1771720246317,-961.58486559,0.00040849,21]
[406310556,1771720246326,-997.16350561,0.00040849,21]
[406310557,1771720246336,-351.470842,0.00040849,120]
[406310558,1771720246345,-351.470842,0.00040849,120]
[406310559,1771720246354,-351.470842,0.00040849,120]
[406310560,1771720246362,-351.470842,0.00040849,120]
[406310561,1771720246371,-150.0,0.00040849,2]
[406310562,1771720246380,-150.0,0.00040849,2]
[406310563,1771720246389,-150.0,0.00040849,2]
[406310564,1771720246398,-150.0,0.00040849,2]
[406310565,1771720246407,-150.0,0.00040849,2]
[406310566,1771720246415,-150.0,0.00040849,2]
[406310567,1771720246425,-233.28899364,0.00040849,2]
[406310568,1771720246434,-500.0,0.0004085,7]
[406310569,1771720246443,-500.0,0.0004085,7]
[406310570,1771720246452,-151.0,0.0004085,120]
[406310571,1771720246462,-151.0,0.0004085,120]
[406310572,1771720246471,-151.0,0.0004085,120]
[406310573,1771720246479,-1737.310194,0.0004085,120]
[406310574,1771720246488,-1737.310194,0.0004085,120]
[406310575,1771720246497,-1737.310194,0.0004085,120]
[406310576,1771720246506,-1737.310194,0.0004085,120]
[406310577,1771720246515,-151.0,0.0004085,120]
[406310578,1771720246525,-151.0,0.0004085,120]
[406310579,1771720246536,-151.0,0.0004085,28]
[406310580,1771720246545,-746.0,0.00040862,30]
[406310581,1771720246555,-749.0,0.00040865,30]
[406310582,1771720246565,-151.0,0.00040872,120]
[406310583,1771720246575,-162.016539,0.00040872,120]
[406310584,1771720246585,-730.0,0.00040872,30]
[406310585,1771720246595,-168.0,0.00040882,2]
[406310586,1771720246603,-151.0,0.000409,120]
[406310587,1771720246615,-5700.0,0.000409,14]
[406310588,1771720246624,-551.0,0.000409,30]
[406310589,1771720246633,-500.0,0.000409,30]
[406310590,1771720246642,-734.0,0.00040904,30]
[406310591,1771720246651,-1397.6541051,0.00040934,2]
[406310592,1771720246660,-300.0,0.00040949,10]
[406310593,1771720246669,-300.0,0.00040949,10]
[406310594,1771720246678,-300.0,0.00040949,10]
[406310595,1771720246687,-66016.0,0.0004095,60]
[406310596,1771720246696,-261.617031,0.0004095,30]
[406310597,1771720246705,-261.617031,0.0004095,30]
[406310598,1771720246714,-261.617031,0.0004095,30]
[406310599,1771720246723,-261.617031,0.0004095,30]
[406310600,1771720246733,-158.473909,0.0004095,120]
[406310601,1771720246742,-158.473909,0.0004095,120]
[406310602,1771720246750,-158.473909,0.0004095,120]
[406310603,1771720246760,-158.473909,0.0004095,120]
[406310604,1771720246770,-1134.2349,0.0004095,120]
[406310605,1771720246780,-1134.2349,0.0004095,120]
[406310606,1771720246789,-1134.2349,0.0004095,120]
[406310607,1771720246798,-151.0,0.0004095,120]
[406310608,1771720246806,-1134.2349,0.0004095,120]
[406310609,1771720246815,-151.0,0.0004095,120]
[406310610,1771720246824,-151.0,0.0004095,120]
[406310611,1771720246833,-151.0,0.0004095,120]
[406310612,1771720246842,-151.0,0.0004095,120]
[406310613,1771720246851,-861.338927,0.0004095,120]
[406310614,1771720246859,-151.0,0.0004095,120]
[406310615,1771720246869,-861.338927,0.0004095,120]
[406310616,1771720246877,-151.0,0.0004095,120]
[406310617,1771720246886,-861.338927,0.0004095,120]
[406310618,1771720246895,-151.0,0.0004095,120]
[406310619,1771720246903,-861.338927,0.0004095,120]
[406310620,1771720246912,-405.98354,0.0004095,120]
[406310621,1771720246921,-405.98354,0.0004095,120]
[406310622,1771720246930,-405.98354,0.0004095,120]
[406310623,1771720246939,-405.98354,0.0004095,120]
[406310624,1771720246947,-151.0,0.0004095,120]
[406310625,1771720246956,-551.0,0.00040955,30]
[406310626,1771720246965,-500.0,0.00040955,30]
[406310627,1771720246974,-1000.0,0.00040986,2]
[406310628,1771720246983,-168.0,0.00041003,2]
[406310629,1771720246992,-551.0,0.0004101,30]
[406310630,1771720247001,-500.0,0.0004101,30]
[406310631,1771720247010,-551.0,0.00041065,30]
[406310632,1771720247019,-380.0,0.00041065,30]
[406310633,1771720247028,-842.0,0.00041096,120]
[406310634,1771720247037,-286.982941,0.00041096,120]
[406310635,1771720247045,-151.0,0.00041096,120]
[406310636,1771720247054,-151.0,0.00041096,120]